Workbook

Sheet Instructivo (hidden)
A1: INSTRUCTIVO PARA EL LLENADO DEL FORMULARIO DE IDENTIFICACIÓN DE PELIGRO
A3: 1. Previo a comenzar a introducir datos en el formulario, presionar botón LIMPIAR DATOS.
A4: 2. Luego de ingresar el BP EMPRESA, el ingreso de los demás datos solo deberá realizarse en las celdas de color anaranjado. No podrá utilizarse el símbolo “&”, debiendo ser reemplazado por la letra “Y” o la palabra “And”.
A5: 3. El número del Informe Técnico se generará por defecto al ingresar el ID del documento, y corresponderá al número de actividad SAP de este.
A6: 4. El ingreso de los rut deberá realizarse sin puntos intermedios.
A7: 5. Para el ingreso de la dirección de la Empresa o del Centro de Trabajo, se han considerado los campos “NOMBRE CALLE DIRECCIÓN” y “NÚMERO DIRECCIÓN”, cualquier información complementaria, como por ejemplo: Depto., Oficina u otra similar, deberá ser ingresada en hoja “Doc_51”, celdas T2 o AS2, según sea el caso.
A8: 6. Cuando el resultado de las celdas “REGLAMENTO DE H&S” y “REGLAMENTO DE RIOH&S” sea “No” o “No corresponde”, no será necesario completar los campos “REGLAMENTO DE H&S incluye Sílice” y “REGLAMENTO DE RIOH&S incluye Sílice”.
A9: 7. Si el resultado del campo “ESTATUS CENTRO TRABAJO” corresponde a “Caduca”, en la celda ubicada al costado derecho de ésta se deberá seleccionar el motivo. Si el motivo seleccionado es “Otros” en hoja “Doc_51”, celda BL2, se deberá indicar a que corresponde.
A10: 8. Los campos “X (LATITUD)” e “Y (LONGITUD)” deberán ser expresados con 7 decimales.
A11: 9. Si el resultado del campo “CT FECHA CONOCIDA DE CIERRE” es No, entonces el campo “FECHA TERMINO CT” no deberá ser llenado.
A12: 10. En pie de firma, insertar firma digital de quién realizó el informe e indicar su cargo y la agencia a la cual pertenece.
A13: 11. Una vez ingresados todos los datos en la hoja de IDENTIFICACION, presionar botón “GENERAR EXCEL PARA EVAST” y guardar el archivo según la siguiente descripción: ID + N° de actividad SAP + Nombre Empresa. El archivo deberá ser anexado en actividad SAP correspondiente.
A14: 12. Luego, presionar botón “GENERAR INFORME PDF” para obtener el informe en formato pdf. Anexar el documento en actividad SAP correspondiente.

Sheet IDENTIFICACION (hidden)
E2: INFORME TÉCNICO Nº | M2: =+$F$11 -> 11978007
E3: IDENTIFICACIÓN DE PELIGRO DE EXPOSICIÓN A PLAGUICIDAS
B8: NOMBRE REP. LEGAL | F8: PIERRE | M8: BP EMPRESA | P8: 2000326859
B9: APELLIDOS REP. LEGAL | F9: LENNE
B11: ID del DOCUMENTO | F11: 11978007 | L11: FECHA DE DETECCIÓN PELIGRO | P11: 2020-12-04
B14: IDENTIFICACIÓN RESPONSABLE ACHS
B15: NOMBRES RESPONSABLE | F15: VERÓNICA | L15: RUT RESPONSABLE | P15: 14223038-0
B16: APELLIDO PATERNO | F16: MELLADO | L16: CORREO PROFESIONAL | P16: VMELLADO@ACHS
B17: APELLIDO MATERNO | F17: FUENTES | L17: ID EXPERTO ACHS | P17: 1003029642
B19: IDENTIFICACIÓN DE LA EMPRESA (CASA MATRIZ)
B20: RAZÓN SOCIAL | F20: FUNDACION GUSTAVO MONDION MARY | L20: RUT EMPLEADOR | P20: 65080250-0
B21: NOMBRE CALLE DIRECCIÓN | F21: FUNDO SANTA TERESA | L21: N° DIRECCIÓN | N21: KM 27 | P21: TIPO CALLE | R21: Avenida
B22: RESTO DIRECCIÓN | F22: Avenida | L22: COMUNA | P22: VICTORIA | AC22: =+IFERROR(VLOOKUP(P7,#REF!,10,FALSE),"") -> 
B24: CÓDIGO CIIU | E24: 12111 | G24: CIIU TEXTO | I24: CRÍA DE GANADO BOVINO PARA LA PRODUCCIÓN LECHERA | P24: TIPO ORGANIZACIÓN | S24: Privada | X24: 3=Independiente | AC24: =+IFERROR(VLOOKUP(P7,#REF!,11,FALSE),"") ->  | AF24: =+IFERROR(VLOOKUP(P7,#REF!,12,FALSE),"") -> 
B25: N° TRABJ HOMBRES | E25: 14 | I25: N° TRABJ MUJERES | L25: 4 | P25: TOTAL TRABAJADORES | S25: 18 | AC25: =+IFERROR(VLOOKUP(P7,#REF!,15,FALSE),"") ->  | AD25: =+IFERROR(VLOOKUP(P7,#REF!,16,FALSE),"") ->  | AF25: =+IFERROR(VLOOKUP(P7,#REF!,14,FALSE),"") -> 
B26: REGLAMENTO DE H&S | E26: No Corresponde | I26: REGLAMENTO DE RIOH&S | L26: Si | P26: DEPTO. PREVENCION | S26: No Corresponde
B27: REGLAMENTO DE H&S incluye Plaguicidas | I27: REGLAMENTO DE RIOH&S incluye Plaguicidas | L27: Si | P27: SISTEMA GESTION INCLUYE PLAGUICIDAS | S27: No
B29: IDENTIFICACIÓN DEL CENTRO DE TRABAJO (SUCURSAL)
B30: NOMBRE EMPLEADOR PRINCIPAL | F30: FUNDACION GUSTAVO MONDION MARY | O30: RUT EMPLEADOR PRINCIPAL | S30: 65080250-0
B32: NOMBRE CENTRO DE TRABAJO | F32: FUNDO SANTA TERESA | O32: TIPO EMPRESA | S32: Principal
B33: ESTATUS CENTRO TRABAJO | F33: Activo | J33: N° PROYECTO/CONTRATO | O33: BP CENTRO DE TRABAJO (SUC) | S33: 2000326859 | X33: 1=Vigente | AC33: =+IF(P7="","",P7) -> 
B35: NOMBRE CALLE DIRECCIÓN | F35: FUNDO SANTA TERESA | O35: NUMERO DIRECCIÓN | S35: KM 27 | X35: 1= Activa | AC35: =+IFERROR(VLOOKUP(P7,#REF!,27,FALSE),"") -> 
B36: COMUNA | D36: ALTO DEL CARMEN | G36: RESTO DIRECCIÓN | O36: TIPO CALLE | S36: Avenida | X36: 2=Caduca | AC36: =+IFERROR(VLOOKUP(P7,#REF!,31,FALSE),"") -> 
B37: X (LATITUD) | F37: -38.2945697 | L37: Y (LONGITUD) | P37: -73.1050034 | X37: 3=Paralizada | AC37: =+IFERROR(VLOOKUP(P7,#REF!,24,FALSE),"") ->  | AF37: =+IFERROR(VLOOKUP(P7,#REF!,25,FALSE),"") -> 
B39: DESCRIPCIÓN ACTIVIDAD CT | F39: CRÍA DE GANADO BOVINO PARA LA PRODUCCIÓN LECHERA | AC39: =+IFERROR(VLOOKUP(P7,#REF!,32,FALSE),"") -> 
B40: N° TRABJ HOMBRES CT | E40: 14 | I40: N° TRABJ MUJERES CT | L40: 4 | P40: N° TOTAL TRABJ CT | S40: 18 | AC40: =+IF(E40="","",SUM(E40+L40)) -> 18
B41: CPHS CONSTITUIDO | E41: No Corresponde | I41: EXP. PREV. DE RIESGOS | L41: Si (propio o facilitado) | P41: HORAS SEMANA EXP. CT | S41: 8
B42: FECHA INICIO CT | I42: CT FECHA CONOCIDA DE CIERRE | L42: No | P42: FECHA TERMINO CT | AC42: =+IFERROR(VLOOKUP(P7,#REF!,39,FALSE),"") -> 
B44: ANTECEDENTES DE LA EXPOSICIÓN
B45: 1 | C45: En sus procesos o servicios que presta, utiliza o está en contacto con plaguicidas que esten en los grupos químicos que se indican a continuación:
D47: Cumarinicos | I47: Organofosforados | N47: Bromuro de Metilo
D48: Carbamatos | I48: Piretroides | N48: Otro (Indicar) | Q48: Indicar AQUÍ –––>
D49: Plaguicida SO2 | I49: Inorganicos (Cr, As) | N49: Ninguno
B52: 2 | C52: Los plaguicidas indicados se utilizan o están presentes en procesos como por ejemplo:
E54: Aplicación | J54: Dosificación | P54: Ninguno
E55: Fabricación | J55: Carga o Mezcla
E56: Baño de peces | J56: Otro en que se abra la tapa del envase. | N56: Indicar AQUÍ –––>
B59: 3 | C59: ¿Utiliza cámaras de fumigación? | Q59: Si | S59: No
B62: 4 | C62: ¿Si no utiliza plaguicidas, es necesario hacer examen de egreso a trabajadores? | Q62: Si | S62: No
B65: CONCLUSIÓN
B66: =+IFERROR('Logica IP'!B26," ") -> En el centro de trabajo se utiliza Piretroides. Los trabajadores expuestos serán ingresados a Programas de Vigilancia Ambiental y de Salud, según corresponda.
W69: 4 | X69: =+IF(+X33=+X35,+X68,+IF(+X33=+X36,"Este centro de trabajo actualmente no está vigente en ACHS.",IF(+X33=+X37,"En este centro de trabajo existe el agente sílice, pero no existe emisión de polvo, porque la faena esta terminada, y por lo tanto no hay exposición de los trabajadores."," "))) -> 
W70: 5 | X70: El Trabajador Independiente realiza tareas con materiales que tienen sílice, en procesos que generan polvo en suspensión, su tiempo de exposición es mayor al 30 % de la jornada semanal, lo cual será comunicado a Experto ACHS para que realice la evaluación cualitativa que corresponde según el Protocolo de Vigilancia del Ambiente de Trabajo y de la Salud de los Trabajadores con Exposición a Sílice. (Resolución Exenta Nº 268 del 3 de Junio de 2015). Adjuntamos ficha resumen del protocolo para su conocimiento.
W71: 6 | X71: El Trabajador Independiente realiza tareas con materiales que tienen sílice, en procesos que generan polvo en suspensión, su tiempo de exposición es menor al 30 % de la jornada semanal, lo cual será comunicado a Experto ACHS para que realice la evaluación cualitativa que corresponde según el Protocolo de Vigilancia del Ambiente de Trabajo y de la Salud de los Trabajadores con Exposición a Sílice. (Resolución Exenta Nº 268 del 3 de Junio de 2015). Adjuntamos ficha resumen del protocolo para su conocimiento.
B75: =+IF(Z59=1, "IMPORTANTE: En el centro de trabajo existen cámaras de fumigación dado lo cual, además de los programas de vigilancia que corresponda aplicar, es necesario que al inicio de cada temporada se informe a la SEREMI de Salud.",+IF(Z62=1," Se debe coordinar con ACHS examen de egreso de los trabajadores que estuvieron expuestos a plaguicidas."," ")) ->  | W75: 7 | X75: =+IF(+Y51=0,"El trabajador independiente no realiza tareas que tengan materiales con sílice ",+IF(+Y58=0,"El trabajador independiente realiza tareas con materiales que tienen sílice, pero no se expone porque en éstas no existe emisión de polvo .", +IF(+Z62=1,X70,X71))) -> El trabajador independiente no realiza tareas que tengan materiales con sílice
W76: 8 | X76: =+IF(+X33=+X35,+X75,+IF(+X33=+X36,"Este centro de trabajo actualmente no está vigente en ACHS.",IF(+X33=+X37,"En este centro de trabajo existe el agente sílice, pero no existe emisión de polvo, porque la faena esta terminada, y por lo tanto no hay exposición de los trabajadores."," "))) -> 
D78: =+F15&" "&F16&" "&F17 -> VERÓNICA MELLADO FUENTES | X78: =+B66 -> En el centro de trabajo se utiliza Piretroides. Los trabajadores expuestos serán ingresados a Programas de Vigilancia Ambiental y de Salud, según corresponda.
D79: EXPERTO EN PREVENCIÓN DE RIESGOS | J79: Nombre Experto | X79: =+IF(X78=X66,1,IF(X78=X67,1,IF(X78=X70,1,IF(X78=X71,1,0)))) -> 0
I80: TEMUCO
I81: ASOCIACIÓN CHILENA DE SEGURIDAD

Sheet Logica IP (hidden)
B1: Plaguicidas | F1: Procesos | J1: ¿Tiene Cámaras? | M1: Necesita Examen egreso
B2: FALSE | C2: FALSE | D2: FALSE | F2: TRUE | G2: FALSE | H2: FALSE | J2: FALSE | K2: TRUE | M2: 2
B3: FALSE | C3: TRUE | D3: FALSE | F3: FALSE | G3: TRUE | H3: FALSE | J3: SI | K3: NO
B4: FALSE | C4: FALSE | D4: FALSE | F4: FALSE | G4: FALSE | H4: FALSE
A6: 1 | B6: ¿Usa Plaguicida? | D6: =+IF(D4=TRUE,"NO","SI") -> SI
A7: 2 | B7: ¿Tiene Expuestos? | D7: =+IF(H2=TRUE,"NO","SI") -> SI
A8: 3 | B8: Plaguicidas utilizados | D8: =+IF(B2=TRUE,"Cumarinicos","") ->  | E8: =+IF(C2=TRUE,"Organofosforados","") ->  | F8: =+IF(D2=TRUE,"Bromuro de Metilo","") ->  | G8: =+IF(B3=TRUE,"Carbamatos","") ->  | H8: =+IF(C3=TRUE,"Piretroides","") -> Piretroides | I8: =+IF(IDENTIFICACION!S48=0,"",IDENTIFICACION!S48) ->  | J8: =+IF(B4=TRUE,"Plaguicida SO2","") ->  | K8: =+IF(C4=TRUE,"Inorganicos (Cr, As)","") -> 
A9: Caso -2 | B9: FALTA INGRESAR NOMBRE DEL PLAGUICIDA
A10: caso - 1 | B10: FALTA INGRESAR PLAGUICIDA | E10: =+IF(OR(B2:D4)=FALSE,"SI","NO") -> NO
A11: Caso 0 | B11: FALTA INGRESAR PROCESO | E11: =+IF(OR(F2:H4)=FALSE,"SI","NO") -> NO
A12: Caso 1 | B12: En este centro de trabajo o faena no se utilizan plaguicidas.
A13: Caso 2 | B13: En el centro existen plaguicidas, pero su manejo no implica la exposición de los trabajadores a éstos; luego no es necesarios tener trabajadores en Programas de Vigilancia.
A14: Caso 3 | B14: =+B15&D22&B16 -> En el centro de trabajo se utiliza Piretroides. Los trabajadores expuestos serán ingresados a Programas de Vigilancia Ambiental y de Salud, según corresponda.
B15: =+IF(D20=1,"En el centro de trabajo se utiliza ",IF(D20>1,"En el centro de trabajo se utilizan ","")) -> En el centro de trabajo se utiliza
B16: . Los trabajadores expuestos serán ingresados a Programas de Vigilancia Ambiental y de Salud, según corresponda.
B17: En el centro de trabajo existen cámaras de fumigación dado lo cual, además de los programas de vigilancia que corresponda aplicar, es necesario que al inicio de cada temporada se informe a la SEREMI de Salud.
B18: El centro de trabajo tiene personal que debe retirar del programa de vigilancia de salud, para lo cual debe ponerse en contacto con ACHS.
A20: Numero de Plaguicidas | D20: =8-COUNTIF(D8:K8,"") -> 1
A21: PlaguIcidas | D21: =+IF(D8<>"",D8&" - ","")&IF(E8<>"",E8&" - ","")&IF(F8<>"",F8&" - ","")&IF(G8<>"",G8&" - ","")&IF(H8<>"",H8&" - ","")&IF(I8<>"",I8&" - ","")&IF(J8<>"",J8&" - ","")&IF(K8<>"",K8&" - ","") -> Piretroides -
D22: =+IF(D20>0,LEFT(D21,LEN(D21)-3),"") -> Piretroides
A23: PARRAFO 1 | B23: =+IF(E10="SI",B10,IF(E11="SI",B11,IF(D6="NO",B12,IF(D7="NO",B13,B14)))) -> En el centro de trabajo se utiliza Piretroides. Los trabajadores expuestos serán ingresados a Programas de Vigilancia Ambiental y de Salud, según corresponda.
A24: PARRAFO 2 | B24: =+IF(J2=TRUE,B17,"") -> 
A25: PARRAFO 3 | B25: =+IF(M2=1,B18,"") -> 
A26: PARRAFO FINAL | B26: =+B23&CHAR(10)&B24&CHAR(10)&B25 -> En el centro de trabajo se utiliza Piretroides. Los trabajadores expuestos serán ingresados a Programas de Vigilancia Ambiental y de Salud, según corresponda.

Sheet CopiaReco (hidden)
B6: 1 | C6: Existencia de autorización de la SEREMI Salud correspondiente si realiza tratamiento de residuos en el Establecimiento, y/o Empresa autorizada para traslado y disposición final. | D6: 1 mes | E6: Verificar Resolución de autorización.
B7: 2 | C7: Existencia de cuantificación de residuos peligrosos de la Empresa, considerando los citotóxicos. | D7: 1 mes | E7: Verificar en terreno
B8: 3 | C8: Existencia de procedimiento de manejo seguro en caso de accidentes o derrames por citostáticos en conocimiento de los trabajadores. | D8: 6 meses | E8: Verificar en terreno.
B9: 4 | C9: Existencia de disposición final intracentro, con la autorización sanitaria correspondiente y sus registros. | D9: 3 meses | E9: Verificar en terreno
B10: 5 | C10: Existencia de calzado cerrado antideslizante, impermeable (bota media caña). | D10: 1 mes | E10: Verificar en terreno
B11: 6 | C11: Existencia de pechera plástica. | D11: 1 mes | E11: Verificar en terreno

Sheet LISTA DE VERIFICACION
C4: LISTA DE CHEQUEO: MANEJO DE RESIDUOS CON SUSTANCIAS CITOSTÁTICAS. | G4: EMPRESA
F7: Fecha Evaluación: | G7: 2023-06-01
B8: AUTO EVALUACION CONTROL DEL RIESGO DE EXPOSICIÓN A CITOSTATICOS EN MANEJO RESIDUOS
C10: Razón Social Empresa: | D10: Servicio de Salud Coquimbo - H. de La Serena | F10: Tipo Empresa | G10: 1. Principal | I10: Organofosforados
C11: Rut Empresa: | D11: 77870923-3 | E11: BP Centro | F11: 2000177094 | I11: Carbamatos
C12: Nombre Encargado Manejo Residuos : | D12: Luis Alucema | E12: Profesión: | F12: Gestión ambiental | I12: Piretroides
C13: Fono/Fax Encargado Encargado Residuos: | E13: Mail: | F13: Luis.alucema@redsalud.gov.cl | I13: Cumarinicos
C14: Nombre Responsable Información: | D14: Luis Alucema | E14: Cargo: | F14: Experto Empresa | I14: Bromuro de Metilo
C15: Dirección del Centro de Trabajo: | D15: AV. Balmaceda # 916 | I15: Plaguicida SO2
C16: Nombre Experto ACHS: | D16: Nicole Gallardo | E16: Agencia: | F16: Elqui | I16: Otro
B17: TABLA N° 2: Distribución de los trabajadores que manejan residuos con sustancias citostáticas | C17: Tabla N° 4: Distribución de los trabajadores en la sala de administración de citostaticos
B19: RUT | C19: Nombre | D19: Lugar de Trabajo | E19: H o M | F19: Horas/Semana
B32: OBJETIVO
B34: Establecer las acciones a realizar por la Empresa para dar cumplimiento al Protocolo de Vigilancia de trabajadores expuestos a citostáticos.
B35: ALCANCE
B37: Lista de evaluación para determinar el nivel de cumplimiento condiciones mínimas de control de la exposición a citostáticos en áreas destinadas al manejo de residuos.
D39: CRITICIDAD DEL REQUISITO | I39: SI
D40: Alta | I40: NO
D41: Media | I41: NA
D42: Baja
B44: REQUISITOS | D44: SELECCIONE SU RESPUESTA EN EL RECUADRO "CUMPLE"
B46: K | C46: GENERALES | D46: EVIDENCIA CUMPLIMIENTO | E46: CUMPLE SI/NO | F46: RECOMENDACIÓN / ACCIÓN A SEGUIR
B47: 1 | C47: Existencia de autorización de la SEREMI Salud correspondiente si realiza tratamiento de residuos en el Establecimiento, y/o Empresa autorizada para traslado y disposición final. | D47: Verificar Resolución de autorización. | E47: NO | F47: =+IF(E47="NO",I47,"") -> Tramitar la autorización de la SEREMI Salud correspondiente si realiza tratamiento de residuos en el Establecimiento, y/o Empresa autorizada para traslado y disposición final. | I47: Tramitar la autorización de la SEREMI Salud correspondiente si realiza tratamiento de residuos en el Establecimiento, y/o Empresa autorizada para traslado y disposición final. | J47: 1
B48: 2 | C48: Existencia de cuantificación de residuos peligrosos de la Empresa, considerando los citotóxicos. | D48: Verificar en terreno | E48: NO | F48: Mantener inventario con cuantificación de residuos peligrosos de la Empresa, considerando los citotóxicos. | I48: Mantener inventario con cuantificación de residuos peligrosos de la Empresa, considerando los citotóxicos. | J48: 1
B49: 3 | C49: Existencia de Plan de Manejo de Residuos cuando corresponda, presentado y aprobado por la Autoridad Sanitaria (Art. 25° D.S. 148/03) | D49: Verificar en terreno | E49: NA | I49: Elaborar Plan de Manejo de Residuos cuando corresponda, presentado y aprobado por la Autoridad Sanitaria (Art. 25° D.S. 148/03) | J49: 2
B50: 4 | C50: Existencia de segregación y separación de los residuos que contengan sustancias citostáticas. Deben estar separados de los demás generados en las diferentes áreas y prohibida su mezcla.(Art. 7° DS 148/2003) | D50: Verificar en terreno. | E50: SI | I50: Realizar segregación y separación de los residuos que contengan sustancias citostáticas. Deben estar separados de los demás generados en las diferentes áreas y prohibida su mezcla.(Art. 7° DS 148/2003) | J50: 2
B51: 5 | C51: Existencia de contenedores utilizados para residuos citostáticos con un espesor adecuado construidos con materiales resistentes, en buenas condiciones, a prueba de filtraciones y volcamientos. (Art. 8° DS 148/2003) | D51: Verificar en terreno. | E51: SI | I51: Habilitar contenedores para residuos citostáticos con un espesor adecuado construidos con materiales resistentes, en buenas condiciones, a prueba de filtraciones y volcamientos. (Art. 8° DS 148/2003) | J51: 2
B52: 6 | C52: Existencia de rotulación en los contenedores en forma claramente visible, las característica de citostáticos según la NCh2190 of 93, con pictograma “CITOTÖXICO”, lugar de procedencia, código de identificación, y la fecha de su ubicación en el sitio de almacenamiento. (Art. 8° DS 148/2003). | D52: Verificar en terreno. | E52: SI | I52: Colocar rotulación en los contenedores en forma claramente visible, las característica de citostáticos según la NCh2190 of 93, con pictograma “CITOTÖXICO”, lugar de procedencia, código de identificación, y la fecha de su ubicación en el sitio de almacenamiento. (Art. 8° DS 148/2003). | J52: 1
B53: =+B52+1 -> 7 | C53: Existencia de bolsas de color rojo, con espesor de 120 mm o más, en cantidad suficiente para la reposición según el número de contenedores. | D53: Verificar en terreno. | E53: SI | I53: Disponer bolsas de color rojo, con espesor de 120 ™m o más, en cantidad suficiente para la reposición según el número de contenedores. | J53: 2
B54: =+B53+1 -> 8 | C54: Existencia de lugar de acopio temporal (transitorio), señalizado, acceso restringido, designación de responsable. | D54: Verificar en terreno. | E54: SI | F54: =+IF(E54="NO",I54,"") ->  | I54: Habilitar un lugar de acopio temporal (transitorio), señalizado, acceso restringido, designación de responsable. | J54: 2 | K54: cronograma
B55: L | C55: PROCEDIMIENTOS E INSTRUCTIVOS | D55: EVIDENCIA CUMPLIMIENTO | E55: CUMPLE SI/NO | F55: RECOMENDACIÓN / ACCIÓN A SEGUIR
B56: =+B54+1 -> 9 | C56: Existencia de instructivo y advertencia visible en el área de manejo de desechos y residuos contaminados de no comer, beber líquidos, masticar chicle, o fumar en el lugar de trabajo. | D56: Chequear en terreno y verificar instructivo. | E56: SI | I56: Elaborar instructivo y colocar advertencia visible en el área de manejo de desechos y residuos contaminados, que indique no comer, beber líquidos, masticar chicle, o fumar en el lugar de trabajo. | J56: 3
B57: =+B56+1 -> 10 | C57: Existencia de procedimiento de trabajo seguro sobre el manejo de los residuos generados que incluya disposición y eliminación final. | D57: Chequear en terreno y verificar instructivo. | E57: NA | I57: Elaborar procedimiento de trabajo seguro sobre el manejo de los residuos generados que incluya disposición y eliminación final. | J57: 3
B58: 11 | C58: Existencia de procedimiento de manejo seguro en caso de accidentes o derrames por citostáticos en conocimiento de los trabajadores. | D58: Verificar en terreno. | E58: NO | F58: Elaborar procedimiento de manejo seguro en caso de accidentes o derrames por citostáticos en conocimiento de los trabajadores. | I58: Elaborar procedimiento de manejo seguro en caso de accidentes o derrames por citostáticos en conocimiento de los trabajadores. | J58: 3
B59: N | C59: LUGAR DE ACOPIO FINAL O INTRACENTRO ( para retiro de empresas autorizadas por la autoridad sanitaria) | D59: EVIDENCIA CUMPLIMIENTO | E59: CUMPLE SI/NO | F59: RECOMENDACIÓN / ACCIÓN A SEGUIR
B60: =+B58+1 -> 12 | C60: Existencia de lavamanos del tipo “manos libres” en el sitio de almacenamiento de residuos de citotóxicos con insumos para el lavado, secado de manos y contenedor para disposición de los guantes utilizados para el traslado como residuos peligrosos. | D60: Chequear en terreno | E60: SI | I60: Instalar lavamanos del tipo “manos libres” en el sitio de almacenamiento de residuos de citotóxicos con insumos para el lavado, secado de manos y contenedor para disposición de los guantes utilizados para el traslado como residuos peligrosos. | J60: 2
B61: 13 | C61: Existencia de sitios para el almacenamiento de los residuos peligrosos que incluyan los “citostáticos” con un cierre perimetral de a lo menos 1,8 metros de la altura que impida el libre acceso a personas y animales y protegidos de las condiciones ambientales tales como la humedad, temperatura y radiación solar. | D61: Chequear en terreno | E61: SI | I61: Habilitar sitios para el almacenamiento de los residuos peligrosos que incluyan los “citostáticos” con un cierre perimetral de a lo menos 1,8 metros de la altura que impida el libre acceso a personas y animales y protegidos de las condiciones ambientales tales como la humedad, temperatura y radiación solar. | J61: 3
B62: 14 | C62: Existencia de ruta de retiro de los residuos citotóxicos alejado de la circulación del público y pacientes, en horario diario. | D62: Verificar en terreno | E62: SI | I62: Habilitar ruta de retiro de los residuos citotóxicos alejado de la circulación del público y pacientes, en horario diario. | J62: 3
B63: 15 | C63: Existencia de sitios para el almacenamiento de los residuos peligrosos “citostáticos que garanticen que se minimice la volatilización, el arrastre o la lixiviación y en general cualquier otro mecanismo de contaminación del medio ambiente que puede afectar a la población. | D63: Verificar en terreno | E63: NA | F63: =+IF(E63="NO",I63,"") ->  | I63: Habilitar sitios para el almacenamiento de los residuos peligrosos “citostáticos que garanticen que se minimice la volatilización, el arrastre o la lixiviación y en general cualquier otro mecanismo de contaminación del medio ambiente que puede afectar a la población. | J63: 2
B64: 16 | C64: Existencia de sitios para el almacenamiento de los residuos peligrosos, con señalización de acuerdo a la NCh 2190 of.93, acceso restringido, con responsable de la instalación, con cierre (llave). | D64: Verificar en terreno | E64: SI | F64: =+IF(E64="NO",I64,"") ->  | I64: Habilitar sitios para el almacenamiento de los residuos peligrosos, con señalización de acuerdo a la NCh 2190 of.93, acceso restringido, con responsable de la instalación, con cierre (llave). | J64: 2
B65: 17 | C65: Existencia de registro de los residuos citotóxicos con fecha, hora y encargado del retiro de las áreas de acopio temporal y final del Establecimiento por la Empresa Externa autorizada por la SEREMI. | D65: Verificar en terreno | E65: NA | F65: =+IF(E65="NO",I65,"") ->  | I65: Mantener planilla de registro de los residuos citotóxicos con fecha, hora y encargado del retiro de las áreas de acopio temporal y final del Establecimiento por la Empresa Externa autorizada por la SEREMI. | J65: 2
B66: 18 | C66: Existencia de disposición final intracentro, con la autorización sanitaria correspondiente y sus registros. | D66: Verificar en terreno | E66: NO | F66: Tramitar autorización sanitaria correspondiente y sus registros para la disposición final intracentro. | I66: Tramitar autorización sanitaria correspondiente y sus registros para la disposición final intracentro. | J66: 2
B67: O | C67: CAPACITACIÓN Y COMPETENCIAS | D67: EVIDENCIA CUMPLIMIENTO | E67: CUMPLE SI/NO | F67: RECOMENDACIÓN / ACCIÓN A SEGUIR
B68: =+B66+1 -> 19 | C68: Existencia de encargado del manejo de residuos peligrosos en el Establecimiento. | D68: Verificar en terreno | E68: NA | F68: =+IF(E68="NO",I68,"") ->  | I68: Nombrar encargado del manejo de residuos peligrosos en el Establecimiento. | J68: 1
B69: =+B68+1 -> 20 | C69: Existencia de capacitaciones a los trabajadores y trabajadoras según el Anexo N°4. | D69: Chequear registro de las capacitaciones, contenidos, número de horas. | E69: SI | I69: Realizar capacitaciones a los trabajadores y trabajadoras según el Anexo N°4 del Protocolo. | J69: 1
B70: P | C70: ELEMENTOS DE PROTECCIÓN PERSONAL E INDUMENTARIA DE TRABAJO | D70: EVIDENCIA CUMPLIMIENTO | E70: CUMPLE SI/NO | F70: RECOMENDACIÓN / ACCIÓN A SEGUIR
B71: =+B69+1 -> 21 | C71: Existencia de ropa de circulación, confeccionado de material que no desprenda partículas entregada por el empleador. | D71: Verificar en terreno | E71: SI | I71: Entregar al personal ropa de circulación, confeccionado de material que no desprenda partículas. | J71: 1
B72: =+B71+1 -> 22 | C72: Existencia de calzado cerrado antideslizante, impermeable (bota media caña). | D72: Verificar en terreno | E72: NO | F72: Entregar al personal calzado cerrado antideslizante, impermeable (bota media caña). | I72: Entregar al personal calzado cerrado antideslizante, impermeable (bota media caña). | J72: 1
B73: =+B72+1 -> 23 | C73: Existencia de guantes resistentes a la abrasión y cortes de neopreno, nitrilo, o equivalente y multiuso. | D73: Verificar en terreno | E73: NA | I73: Entregar al persona guantes resistentes a la abrasión y cortes de neopreno, nitrilo, o equivalente y multiuso. | J73: 1
B74: 24 | C74: Existencia de pechera plástica. | D74: Verificar en terreno | E74: NO | F74: =+IF(E74="NO",I74,"") -> Entregar al personal pechera plástica. | I74: Entregar al personal pechera plástica. | J74: 1
B75: 25 | C75: Existencia de mascara filtrante tipo P3 o P 100, o equivalente desechable. | D75: Verificar en terreno | E75: SI | I75: Entregar al personal mascara filtrante tipo P3 o P 100, o equivalente desechable. | J75: 1
D77: NO se cumplen | E77: =+COUNTIF(E47:E75,"NO") -> 6 | F77: =+E77/(E80-E79) -> 0.3157894737
D78: SI se cumplen | E78: =+COUNTIF(E47:E75,"SI") -> 13 | F78: =+E78/(E80-E79) -> 0.6842105263
D79: NO Aplican | E79: =+COUNTIF(E47:E75,"NA") -> 6
D80: Total | E80: =+SUM(E77:E79) -> 25
C82: Nombre Responsable Empresa: | D82: Firma: | E82: Fecha:

Sheet CopiaLV (hidden)
A2: LISTA DE VERIFICACION
A3: REQUISITOS
A5: K | B5: GENERALES | C5: CUMPLE SI/NO
A6: 1 | B6: Existencia de autorización de la SEREMI Salud correspondiente si realiza tratamiento de residuos en el Establecimiento, y/o Empresa autorizada para traslado y disposición final. | C6: NO
A7: 2 | B7: Existencia de cuantificación de residuos peligrosos de la Empresa, considerando los citotóxicos. | C7: NO
A8: 3 | B8: Existencia de Plan de Manejo de Residuos cuando corresponda, presentado y aprobado por la Autoridad Sanitaria (Art. 25° D.S. 148/03) | C8: NA
A9: 4 | B9: Existencia de segregación y separación de los residuos que contengan sustancias citostáticas. Deben estar separados de los demás generados en las diferentes áreas y prohibida su mezcla.(Art. 7° DS 148/2003) | C9: SI
A10: 5 | B10: Existencia de contenedores utilizados para residuos citostáticos con un espesor adecuado construidos con materiales resistentes, en buenas condiciones, a prueba de filtraciones y volcamientos. (Art. 8° DS 148/2003) | C10: SI
A11: 6 | B11: Existencia de rotulación en los contenedores en forma claramente visible, las característica de citostáticos según la NCh2190 of 93, con pictograma “CITOTÖXICO”, lugar de procedencia, código de identificación, y la fecha de su ubicación en el sitio de almacenamiento. (Art. 8° DS 148/2003). | C11: SI
A12: 7 | B12: Existencia de bolsas de color rojo, con espesor de 120 mm o más, en cantidad suficiente para la reposición según el número de contenedores. | C12: SI
A13: 8 | B13: Existencia de lugar de acopio temporal (transitorio), señalizado, acceso restringido, designación de responsable. | C13: SI
A14: L | B14: PROCEDIMIENTOS E INSTRUCTIVOS | C14: CUMPLE SI/NO
A15: 9 | B15: Existencia de instructivo y advertencia visible en el área de manejo de desechos y residuos contaminados de no comer, beber líquidos, masticar chicle, o fumar en el lugar de trabajo. | C15: SI
A16: 10 | B16: Existencia de procedimiento de trabajo seguro sobre el manejo de los residuos generados que incluya disposición y eliminación final. | C16: NA
A17: 11 | B17: Existencia de procedimiento de manejo seguro en caso de accidentes o derrames por citostáticos en conocimiento de los trabajadores. | C17: NO
A18: N | B18: LUGAR DE ACOPIO FINAL O INTRACENTRO ( para retiro de empresas autorizadas por la autoridad sanitaria) | C18: CUMPLE SI/NO
A19: 12 | B19: Existencia de lavamanos del tipo “manos libres” en el sitio de almacenamiento de residuos de citotóxicos con insumos para el lavado, secado de manos y contenedor para disposición de los guantes utilizados para el traslado como residuos peligrosos. | C19: SI
A20: 13 | B20: Existencia de sitios para el almacenamiento de los residuos peligrosos que incluyan los “citostáticos” con un cierre perimetral de a lo menos 1,8 metros de la altura que impida el libre acceso a personas y animales y protegidos de las condiciones ambientales tales como la humedad, temperatura y radiación solar. | C20: SI
A21: 14 | B21: Existencia de ruta de retiro de los residuos citotóxicos alejado de la circulación del público y pacientes, en horario diario. | C21: SI
A22: 15 | B22: Existencia de sitios para el almacenamiento de los residuos peligrosos “citostáticos que garanticen que se minimice la volatilización, el arrastre o la lixiviación y en general cualquier otro mecanismo de contaminación del medio ambiente que puede afectar a la población. | C22: NA
A23: 16 | B23: Existencia de sitios para el almacenamiento de los residuos peligrosos, con señalización de acuerdo a la NCh 2190 of.93, acceso restringido, con responsable de la instalación, con cierre (llave). | C23: SI
A24: 17 | B24: Existencia de registro de los residuos citotóxicos con fecha, hora y encargado del retiro de las áreas de acopio temporal y final del Establecimiento por la Empresa Externa autorizada por la SEREMI. | C24: NA
A25: 18 | B25: Existencia de disposición final intracentro, con la autorización sanitaria correspondiente y sus registros. | C25: NO
A26: O | B26: CAPACITACIÓN Y COMPETENCIAS | C26: SI
A27: 19 | B27: Existencia de encargado del manejo de residuos peligrosos en el Establecimiento. | C27: NA
A28: 20 | B28: Existencia de capacitaciones a los trabajadores y trabajadoras según el Anexo N°4. | C28: SI
A29: P | B29: ELEMENTOS DE PROTECCIÓN PERSONAL E INDUMENTARIA DE TRABAJO | C29: SI
A30: 21 | B30: Existencia de ropa de circulación, confeccionado de material que no desprenda partículas entregada por el empleador. | C30: SI
A31: 22 | B31: Existencia de calzado cerrado antideslizante, impermeable (bota media caña). | C31: NO
A32: 23 | B32: Existencia de guantes resistentes a la abrasión y cortes de neopreno, nitrilo, o equivalente y multiuso. | C32: NA
A33: 24 | B33: Existencia de pechera plástica. | C33: NO
A34: 25 | B34: Existencia de mascara filtrante tipo P3 o P 100, o equivalente desechable. | C34: SI

Sheet Grafico 2 (hidden)
B1: % Cumplimiento | C1: SI | D1: NO | E1: NA | F1: Total sin NA
A2: ALTA | B2: =+C2/F2 -> 0.5 | C2: 4 | D2: 4 | E2: 2 | F2: =+(C2+D2) -> 8
A3: MEDIA | B3: =+C3/F3 -> 0.8571428571 | C3: 6 | D3: 1 | E3: 3 | F3: =+(C3+D3) -> 7
A4: BAJA | B4: 0.75 | C4: 3 | D4: 1 | E4: 1 | F4: 4

Sheet Recomendaciones (hidden)
B1: Existencia de autorización de la SEREMI Salud correspondiente si realiza tratamiento de residuos en el Establecimiento, y/o Empresa autorizada para traslado y disposición final. | C1: 1 mes | D1: 1 | E1: Verificar Resolución de autorización.
B2: Existencia de cuantificación de residuos peligrosos de la Empresa, considerando los citotóxicos. | C2: 1 mes | D2: 1 | E2: Verificar en terreno
B3: Existencia de procedimiento de manejo seguro en caso de accidentes o derrames por citostáticos en conocimiento de los trabajadores. | C3: 6 meses | E3: Verificar en terreno.
B4: Existencia de disposición final intracentro, con la autorización sanitaria correspondiente y sus registros. | C4: 3 meses | D4: 2 | E4: Verificar en terreno
B5: Existencia de calzado cerrado antideslizante, impermeable (bota media caña). | C5: 1 mes | D5: 1 | E5: Verificar en terreno
B6: Existencia de pechera plástica. | C6: 1 mes | D6: 1 | E6: Verificar en terreno

Sheet datos (hidden)
A1: Nombre | B1: BP Centro Trabajo | C1: Rut_Empleador | D1: Digito | E1: Direccion_CT | F1: Numero_CT | G1: Comuna CT | H1: Experto ACHS | I1: Agencia | J1: Fecha Visita | K1: Noaplica | L1: Nocumple | M1: Sicumple | N1: NivelRiesgo | O1: Nombre Jefe | P1: Cargo | Q1: Plaguicida Principal | R1: Raesultado Vigilancia Salud | S1: ¿Vigilancia Salud? | T1: Alternativa 1 Salud | U1: Alternativa 2 salud | V1: Tipo Empresa
A2: =+'LISTA DE VERIFICACION'!D10 -> Servicio de Salud Coquimbo - H. de La Serena | B2: =+'LISTA DE VERIFICACION'!F11 -> 2000177094 | C2: =+LEFT(+'LISTA DE VERIFICACION'!D11,LEN(+'LISTA DE VERIFICACION'!D11)-2) -> 77870923 | D2: =+RIGHT(+'LISTA DE VERIFICACION'!D11,1) -> 3 | E2: =+'LISTA DE VERIFICACION'!D15 -> AV. Balmaceda # 916 | H2: =+'LISTA DE VERIFICACION'!D16 -> Nicole Gallardo | I2: =+'LISTA DE VERIFICACION'!F16 -> Elqui | J2: =+'LISTA DE VERIFICACION'!G7 -> 2023-06-01 | K2: 6 | L2: 6 | M2: 13 | O2: =+'LISTA DE VERIFICACION'!D14 -> Luis Alucema | P2: =+'LISTA DE VERIFICACION'!F14 -> Experto Empresa | V2: =IF('LISTA DE VERIFICACION'!G10="1. Principal",1,2) -> 1
A4: 1 | B4: =+A4+1 -> 2 | C4: =+B4+1 -> 3 | D4: 4 | E4: 5 | F4: =+E4+1 -> 6 | G4: 7 | H4: 8 | I4: 9 | J4: 10 | K4: 11 | L4: 12 | M4: 13 | N4: 14 | O4: 15 | P4: 16 | Q4: 17 | R4: 18 | S4: 19 | T4: 20 | U4: 21 | V4: 22
B22: Carbamatos

Sheet NO Aplica (hidden)
B1: MEDIDA QUE NO APLICA
B2: Existencia de Plan de Manejo de Residuos cuando corresponda, presentado y aprobado por la Autoridad Sanitaria (Art. 25° D.S. 148/03)
B3: Existencia de procedimiento de trabajo seguro sobre el manejo de los residuos generados que incluya disposición y eliminación final.
B4: Existencia de sitios para el almacenamiento de los residuos peligrosos “citostáticos que garanticen que se minimice la volatilización, el arrastre o la lixiviación y en general cualquier otro mecanismo de contaminación del medio ambiente que puede afectar a la población.
B5: Existencia de registro de los residuos citotóxicos con fecha, hora y encargado del retiro de las áreas de acopio temporal y final del Establecimiento por la Empresa Externa autorizada por la SEREMI.
B6: Existencia de encargado del manejo de residuos peligrosos en el Establecimiento.
B7: Existencia de guantes resistentes a la abrasión y cortes de neopreno, nitrilo, o equivalente y multiuso.

Sheet Grafico (hidden)
I1: Total de Respuestas NO por Color
B2: Condiciones Verificadas | C2: N° Resp. Si | D2: N° Resp. No | E2: N° Resp. NC | F2: Total | G2: % Cumplimiento | H2: Total sin NC | I2: 1 | J2: 2 | K2: 3 | L2: Total
B3: A. Generales | C3: 5 | D3: 2 | E3: 1 | F3: 8 | G3: =IF(H3=0,"NC",+C3/H3) -> 0.7142857143 | H3: =+F3-E3 -> 7 | I3: 2 | J3: 0 | K3: 0 | L3: =+I3+J3+K3 -> 2
B4: B. Procedimientos | C4: 1 | D4: 1 | E4: 1 | F4: 3 | G4: =IF(H4=0,"NC",+C4/H4) -> 0.5 | H4: =+F4-E4 -> 2 | I4: 0 | J4: 0 | K4: 1 | L4: =+I4+J4+K4 -> 1
B5: C. Lugar final o intracentro | C5: 4 | D5: 1 | E5: 2 | F5: 7 | G5: 0.8 | H5: =+F5-E5 -> 5 | I5: 0 | J5: 1 | K5: 0 | L5: 1
B6: D. Capacitación y competencias | C6: 1 | D6: 0 | E6: 1 | F6: 2 | G6: 1 | H6: 1 | I6: 0 | J6: 0 | K6: 0 | L6: 0
B7: E. Elementos de Protección Personal | C7: 2 | D7: 2 | E7: 1 | F7: 5 | G7: 0.5 | H7: 4 | I7: 2 | J7: 0 | K7: 0 | L7: 2
L8: 0
L13: 0
B14: Total | C14: =+SUM(C3:C13) -> 13 | D14: =+SUM(D3:D13) -> 6 | E14: =+SUM(E3:E13) -> 6 | F14: 25 | G14: =+C14/F14 -> 0.52 | H14: =+SUM(H3:H13) -> 19 | I14: =+SUM(I3:I13) -> 4 | J14: =+SUM(J3:J13) -> 1 | K14: =+SUM(K3:K13) -> 1 | L14: 6
B16: Protección Personal | C16: =14+18+9 -> 41 | H16: Total Preg / clas | I16: 10 | J16: 10 | K16: 5 | L16: =+SUM(I16:K16) -> 25
H17: Total clas 1 y NC | I17: 0 | J17: 0 | K17: 0
H18: % Cumplimiento | I18: =1-I14/(I16-I17) -> 0.6 | J18: =1-J14/(J16-J17) -> 0.9 | K18: =1-K14/K16 -> 0.8 | L18: =10/29 -> 0.3448275862
H19: Criticidad | I19: Alta | J19: Media | K19: Baja
H20: Total de resp. NO | I20: =+D14 -> 6
H21: Evaluacion Riesgo | I21: =+IF(I18<1,"Alto",+IF(J18=1,"Bajo","Medio")) -> Alto

Sheet Hoja1 (hidden)
A1: Nombre Comuna | B1: Código Comuna 2010
A2: AISEN | B2: 11201
A3: ALGARROBO | B3: 05602
A4: ALHUE | B4: 13502
A5: ALTO BIOBIO | B5: 08314
A6: ALTO DEL CARMEN | B6: 03302
A7: ALTO HOSPICIO | B7: 01107
A8: ANCUD | B8: 10202
A9: ANDACOLLO | B9: 04103
A10: ANGOL | B10: 09201
A11: ANTARTICA | B11: 12202
A12: ANTOFAGASTA | B12: 02101
A13: ANTUCO | B13: 08302
A14: ARAUCO | B14: 08202
A15: ARICA | B15: 15101
A16: BUIN | B16: 13402
A17: BULNES | B17: 08402
A18: CABILDO | B18: 05402
A19: CABO DE HORNOS | B19: 12201
A20: CABRERO | B20: 08303
A21: CALAMA | B21: 02201
A22: CALBUCO | B22: 10102
A23: CALDERA | B23: 03102
A24: CALERA | B24: 05502
A25: CALERA DE TANGO | B25: 13403
A26: CALLE LARGA | B26: 05302
A27: CAMARONES | B27: 15102
A28: CAMIÑA | B28: 01402
A29: CANELA | B29: 04202
A30: CAÑETE | B30: 08203
A31: CARAHUE | B31: 09102
A32: CARTAGENA | B32: 05603
A33: CASABLANCA | B33: 05102
A34: CASTRO | B34: 10201
A35: CATEMU | B35: 05702
A36: CAUQUENES | B36: 07201
A37: CERRILLOS | B37: 13102
A38: CERRO NAVIA | B38: 13103
A39: CHAITEN | B39: 10401
A40: CHANCO | B40: 07202
A41: CHAÑARAL | B41: 03201
A42: CHEPICA | B42: 06302
A43: CHIGUAYANTE | B43: 08103
A44: CHILE CHICO | B44: 11401
A45: CHILLAN | B45: 08401
A46: CHILLAN VIEJO | B46: 08406
A47: CHIMBARONGO | B47: 06303
A48: CHOLCHOL | B48: 09121
A49: CHONCHI | B49: 10203
A50: CISNES | B50: 11202
A51: COBQUECURA | B51: 08403
A52: COCHAMO | B52: 10103
A53: COCHRANE | B53: 11301
A54: CODEGUA | B54: 06102
A55: COELEMU | B55: 08404
A56: COIHAIQUE | B56: 11101
A57: COIHUECO | B57: 08405
A58: COINCO | B58: 06103
A59: COLBUN | B59: 07402
A60: COLCHANE | B60: 01403
A61: COLINA | B61: 13301
A62: COLLIPULLI | B62: 09202
A63: COLTAUCO | B63: 06104
A64: COMBARBALA | B64: 04302
A65: CONCEPCION | B65: 08101
A66: CONCHALI | B66: 13104
A67: CONCON | B67: 05103
A68: CONSTITUCION | B68: 07102
A69: CONTULMO | B69: 08204
A70: COPIAPO | B70: 03101
A71: COQUIMBO | B71: 04102
A72: CORONEL | B72: 08102
A73: CORRAL | B73: 14102
A74: CUNCO | B74: 09103
A75: CURACAUTIN | B75: 09203
A76: CURACAVI | B76: 13503
A77: CURACO DE VELEZ | B77: 10204
A78: CURANILAHUE | B78: 08205
A79: CURARREHUE | B79: 09104
A80: CUREPTO | B80: 07103
A81: CURICO | B81: 07301
A82: DALCAHUE | B82: 10205
A83: DIEGO DE ALMAGRO | B83: 03202
A84: DOÑIHUE | B84: 06105
A85: EL BOSQUE | B85: 13105
A86: EL CARMEN | B86: 08407
A87: EL MONTE | B87: 13602
A88: EL QUISCO | B88: 05604
A89: EL TABO | B89: 05605
A90: EMPEDRADO | B90: 07104
A91: ERCILLA | B91: 09204
A92: ESTACION CENTRAL | B92: 13106
A93: FLORIDA | B93: 08104
A94: FREIRE | B94: 09105
A95: FREIRINA | B95: 03303
A96: FRESIA | B96: 10104
A97: FRUTILLAR | B97: 10105
A98: FUTALEUFU | B98: 10402
A99: FUTRONO | B99: 14202
A100: GALVARINO | B100: 09106
A101: GENERAL LAGOS | B101: 15202
A102: GORBEA | B102: 09107
A103: GRANEROS | B103: 06106
A104: GUAITECAS | B104: 11203
A105: HIJUELAS | B105: 05503
A106: HUALAIHUE | B106: 10403
A107: HUALAÑE | B107: 07302
A108: HUALPEN | B108: 08112
A109: HUALQUI | B109: 08105
A110: HUARA | B110: 01404
A111: HUASCO | B111: 03304
A112: HUECHURABA | B112: 13107
A113: IGNORADA | B113: 99999
A114: ILLAPEL | B114: 04201
A115: INDEPENDENCIA | B115: 13108
A116: IQUIQUE | B116: 01101
A117: ISLA DE MAIPO | B117: 13603
A118: ISLA DE PASCUA | B118: 05201
A119: JUAN FERNANDEZ | B119: 05104
A120: LA CISTERNA | B120: 13109
A121: LA CRUZ | B121: 05504
A122: LA ESTRELLA | B122: 06202
A123: LA FLORIDA | B123: 13110
A124: LA GRANJA | B124: 13111
A125: LA HIGUERA | B125: 04104
A126: LA LIGUA | B126: 05401
A127: LA PINTANA | B127: 13112
A128: LA REINA | B128: 13113
A129: LA SERENA | B129: 04101
A130: LA UNION | B130: 14201
A131: LAGO RANCO | B131: 14203
A132: LAGO VERDE | B132: 11102
A133: LAGUNA BLANCA | B133: 12102
A134: LAJA | B134: 08304
A135: LAMPA | B135: 13302
A136: LANCO | B136: 14103
A137: LAS CABRAS | B137: 06107
A138: LAS CONDES | B138: 13114
A139: LAUTARO | B139: 09108
A140: LEBU | B140: 08201
A141: LICANTEN | B141: 07303
A142: LIMACHE | B142: 05802
A143: LINARES | B143: 07401
A144: LITUECHE | B144: 06203
A145: LLAILLAY | B145: 05703
A146: LLANQUIHUE | B146: 10107
A147: LO BARNECHEA | B147: 13115
A148: LO ESPEJO | B148: 13116
A149: LO PRADO | B149: 13117
A150: LOLOL | B150: 06304
A151: LONCOCHE | B151: 09109
A152: LONGAVI | B152: 07403
A153: LONQUIMAY | B153: 09205
A154: LOS ALAMOS | B154: 08206
A155: LOS ANDES | B155: 05301
A156: LOS ANGELES | B156: 08301
A157: LOS LAGOS | B157: 14104
A158: LOS MUERMOS | B158: 10106
A159: LOS SAUCES | B159: 09206
A160: LOS VILOS | B160: 04203
A161: LOTA | B161: 08106
A162: LUMACO | B162: 09207
A163: MACHALI | B163: 06108
A164: MACUL | B164: 13118
A165: MAFIL | B165: 14105
A166: MAIPU | B166: 13119
A167: MALLOA | B167: 06109
A168: MARCHIHUE | B168: 06204
A169: MARIA ELENA | B169: 02302
A170: MARIA PINTO | B170: 13504
A171: MARIQUINA | B171: 14106
A172: MAULE | B172: 07105
A173: MAULLIN | B173: 10108
A174: MEJILLONES | B174: 02102
A175: MELIPEUCO | B175: 09110
A176: MELIPILLA | B176: 13501
A177: MOLINA | B177: 07304
A178: MONTE PATRIA | B178: 04303
A179: MOSTAZAL | B179: 06110
A180: MULCHEN | B180: 08305
A181: NACIMIENTO | B181: 08306
A182: NANCAGUA | B182: 06305
A183: NATALES | B183: 12401
A184: NAVIDAD | B184: 06205
A185: NEGRETE | B185: 08307
A186: NINHUE | B186: 08408
A187: NOGALES | B187: 05506
A188: NUEVA IMPERIAL | B188: 09111
A189: ÑIQUEN | B189: 08409
A190: ÑUÑOA | B190: 13120
A191: O'HIGGINS | B191: 11302
A192: OLIVAR | B192: 06111
A193: OLLAGUE | B193: 02202
A194: OLMUE | B194: 05803
A195: OSORNO | B195: 10301
A196: OVALLE | B196: 04301
A197: PADRE HURTADO | B197: 13604
A198: PADRE LAS CASAS | B198: 09112
A199: PAIGUANO | B199: 04105
A200: PAILLACO | B200: 14107
... 148 more rows

Sheet Doc_51 (hidden)
A1: CUV | B1: Codigo del OA Emisor | C1: Fecha Emisión Documento Electrónico | D1: Folio | E1: Codigo Agente Riesgo | F1: Tipo Documento | G1: ID Documento | H1: Tipo Documento Asociado | I1: ID Documento Asociado | J1: Rut Responsable | K1: Apellido Paterno Responsable | L1: Apellido Materno Responsable | M1: Nombres Responsable | N1: Responsable Correo Profesional | O1: Rut Empleador | P1: Razon Social | Q1: Tipo Calle | R1: Nombre Calle | S1: Numero | T1: Resto Direccion | U1: Localidad | V1: Comuna | W1: Codigo CIIU Empleador Evaluado | X1: CIIU Texto o Giro Empleador evaluado | Y1: Carácter Organización | Z1: N° Total Trabajadores Propios | AA1: Numero Trabajadores Hombres | AB1: Numero Trabajadores Mujer | AC1: Reglamento de Higiene y Seguridad | AD1: Reglamento de Higiene y Seguridad incorpora agente de riesgo | AE1: Reglamento de Orden Higiene y Seguridad | AF1: Reglamento de Orden Higiene y Seguridad incorpora Agente de riesgo | AG1: Depto. Prevencion Riesgos | AH1: Estado Centro Trabajo | AI1: Rut Empleador Principal | AJ1: Nombre Empleador Principal | AK1: Correlativo Proyecto/contrato | AL1: Nombre Centro de Trabajo | AM1: Tipo Empresa | AN1: X (Latitud) | AO1: Y (Longitud) | AP1: Tipo calle CT | AQ1: Nombre calle CT | AR1: Numero CT | AS1: Resto direccion CT | AT1: Localidad CT | AU1: Comuna CT | AV1: Descripcion Actividad Centro Trabajo | AW1: N° Total Trabajadores CT | AX1: N° Trabajadores Hombres CT | AY1: N° Trabajadores Mujer CT | AZ1: Comité Paritario Constituido | BA1: Experto Prevencion Riesgos | BB1: Experto Prevencion Riesgos-Horas Semana dedicacion al CT | BC1: Fecha Inicio Centro Trabajo | BD1: Centro de trabajo con fecha de cierre conocida | BE1: Fecha Término Centro Trabajo | BF1: Presencia peligro | BG1: Fecha Deteccion Peligro | BH1: Origen | BI1: BP Centro Trabajo | BJ1: ID Documento | BK1: Causas Cierre | BL1: Motivo Cierre | BM1: Fecha Cierre
B2: 11 | E2: 6001010601 | F2: 51 | G2: 1 | J2: 16717064-1 | K2: LEANDRO | L2: JARAMILLO | M2: LORCA | N2: LJARAMILLO@ACHS.CL | O2: 79547780-2 | P2: CARSOL FRUIT | Q2: 3 | R2: CAMINO A COHIHUECO | S2: TIPO CALLE | U2: CHILLAN | V2: 08401 | W2: 11321 | Y2: 2 | Z2: 16 | AA2: 12 | AB2: 4 | AC2: 3 | AD2: 2 | AE2: 1 | AF2: 1 | AG2: 1 | AH2: 2 | AI2: 79547780-2 | AJ2: CARSOL FRUIT S.A. | AL2: FUNDO LINDEROS | AM2: 1 | AN2: 408874 | AO2: 731970 | AP2: 3 | AQ2: ESTERO LARGO | AR2: KM 3 | AV2: PRODUCCIÓN DE BERRIES, HORTALIZAS Y OTROS FRUTALES | AW2: 54 | AX2: 28 | AY2: 26 | AZ2: 1 | BA2: 1 | BC2: 2019-01-18 | BD2: 2 | BF2: 2 | BG2: 2019-05-23 | BH2: 1 | BI2: 2000739344 | BJ2: 2134213 | BK2: 5 | BM2: =BG2 -> 2019-05-23
